fUSD/lending_fUSD_20250617
["ID","MTS","AMOUNT","RATE_DAILY","PERIOD"]
[366307625,1750180266893,-2781.71,0.00016602,2]
[366307626,1750180266902,-1247.81,0.00016602,2]
[366307627,1750180266912,-490.0,0.00016602,2]
[366307628,1750180266921,-490.0,0.00016602,2]
[366307629,1750180266931,-2146.03,0.00016602,2]
[366307630,1750180266941,-1880.65,0.00016602,2]
[366307631,1750180266951,-524.74,0.00016602,2]
[366307632,1750180266961,-490.0,0.00016602,2]
[366307633,1750180266970,-1170.89,0.00016602,2]
[366307634,1750180266980,-490.0,0.00016602,2]
[366307635,1750180266990,-1663.2,0.00016602,2]
[366307636,1750180267000,-490.0,0.00016602,2]
[366307637,1750180267011,-490.0,0.00016602,2]
[366307638,1750180267021,-490.0,0.00016602,2]
[366307639,1750180267031,-752.21,0.00016602,2]
[366307640,1750180267040,-5427.43,0.00016602,2]
[366307641,1750180267050,-1217.68,0.00016602,2]
[366307642,1750180267060,-490.0,0.00016602,2]
[366307643,1750180267070,-637.92,0.00016602,2]
[366307644,1750180267081,-1317.18,0.00016602,2]
[366307645,1750180267091,-742.89,0.00016602,2]
[366307646,1750180267101,-490.0,0.00016602,2]
[366307647,1750180267111,-490.0,0.00016602,2]
[366307648,1750180267121,-490.0,0.00016602,2]
[366307649,1750180267131,-490.0,0.00016602,2]
[366307650,1750180267145,-24389.48,0.00016602,2]
[366307651,1750180267155,-2230.09,0.00016602,2]
[366307652,1750180267165,-1240.88,0.00016602,2]
[366307653,1750180267175,-490.0,0.00016602,2]
[366307654,1750180267186,-490.0,0.00016602,2]
[366307655,1750180267195,-519.62,0.00016602,2]
[366307656,1750180267205,-660.62,0.00016602,2]
[366307657,1750180267215,-530.0,0.00016602,2]
[366307658,1750180267225,-631.84,0.00016602,2]
[366307659,1750180267236,-720.22,0.00016602,2]
[366307660,1750180267246,-490.0,0.00016602,2]
[366307661,1750180267256,-790.89,0.00016602,2]
[366307662,1750180267266,-490.0,0.00016602,2]
[366307663,1750180267277,-490.0,0.00016602,2]
[366307664,1750180267287,-490.0,0.00016602,2]
[366307665,1750180267297,-2115.02,0.00016602,2]
[366307666,1750180267306,-490.0,0.00016602,2]
[366307667,1750180267317,-490.0,0.00016602,2]
[366307668,1750180267328,-1844.7,0.00016602,2]
[366307669,1750180267339,-262.4838527,0.00016602,2]
[366307670,1750180267350,-1307.29,0.00016602,2]
[366307671,1750180267360,-1093.27,0.00016602,2]
[366307672,1750180267370,-6576.04,0.00016602,2]
[366307673,1750180267381,-490.0,0.00016602,2]
[366307674,1750180267394,-490.0,0.00016602,2]
[366307675,1750180267404,-970.57,0.00016602,2]
[366307676,1750180267414,-3051.47,0.00016602,2]
[366307677,1750180267424,-169.72026589,0.00016602,2]
[366307678,1750180267434,-2981.31,0.00016602,2]
[366307679,1750180267444,-868.85,0.00016602,2]
[366307680,1750180267454,-490.0,0.00016602,2]
[366307681,1750180267464,-1232.72,0.00016602,2]
[366307682,1750180267474,-592.73,0.00016602,2]
[366307683,1750180267484,-490.0,0.00016602,2]
[366307684,1750180267494,-518.85,0.00016602,2]
[366307685,1750180267504,-490.0,0.00016602,2]
[366307686,1750180267514,-490.0,0.00016602,2]
[366307687,1750180267525,-490.0,0.00016602,2]
[366307688,1750180267722,-490.0,0.00016602,2]
[366307689,1750180267732,-2317.76,0.00016602,2]
[366307690,1750180267742,-490.0,0.00016602,2]
[366307691,1750180267752,-862.19,0.00016602,2]
[366307692,1750180267761,-490.0,0.00016602,2]
[366307693,1750180267771,-1299.59,0.00016602,2]
[366307694,1750180267781,-513.94060348,0.00016602,2]
[366307695,1750180267791,-1721.63,0.00016602,2]
[366307696,1750180267801,-832.24,0.00016602,2]
[366307697,1750180267811,-711.28,0.00016602,2]
[366307698,1750180267821,-490.0,0.00016602,2]
[366307699,1750180267831,-490.0,0.00016602,2]
[366307700,1750180267841,-834.37,0.00016602,2]
[366307701,1750180267852,-490.0,0.00016602,2]
[366307702,1750180267864,-538.5,0.00016602,2]
[366307703,1750180267874,-490.0,0.00016602,2]
[366307704,1750180267886,-490.0,0.00016602,2]
[366307705,1750180267895,-22265.86,0.00016602,2]
[366307706,1750180267906,-748.7,0.00016602,2]
[366307707,1750180267915,-1159.42,0.00016602,2]
[366307708,1750180267926,-2471.51,0.00016602,2]
[366307709,1750180267937,-490.0,0.00016602,2]
[366307710,1750180267946,-490.0,0.00016602,2]
[366307711,1750180267956,-490.0,0.00016602,2]
[366307712,1750180267966,-661.86,0.00016602,2]
[366307713,1750180267976,-4894.9,0.00016602,2]
[366307714,1750180267985,-490.0,0.00016602,2]
[366307715,1750180267996,-1203.36,0.00016602,2]
[366307716,1750180268006,-1510.51,0.00016602,2]
[366307717,1750180268015,-490.0,0.00016602,2]
[366307718,1750180268025,-509.35,0.00016602,2]
[366307719,1750180268035,-573.64,0.00016602,2]
[366307720,1750180268045,-424.59,0.00016602,2]
[366307721,1750180268055,-490.0,0.00016602,2]
[366307722,1750180268064,-1058.39,0.00016602,2]
[366307723,1750180268074,-2026.85,0.00016602,2]
[366307724,1750180268084,-490.0,0.00016602,2]
[366307725,1750180268093,-1271.96,0.00016602,2]
[366307726,1750180268103,-3039.14,0.00016602,2]
[366307727,1750180268113,-1239.6,0.00016602,2]
[366307728,1750180268122,-252.065,0.00016602,2]
[366307729,1750180268132,-1399.97,0.00016602,2]
[366307730,1750180268143,-490.0,0.00016602,2]
[366307731,1750180268152,-1077.61,0.00016602,2]
[366307732,1750180268162,-3168.28,0.00016602,2]
[366307733,1750180268172,-490.0,0.00016602,2]
[366307734,1750180268182,-490.0,0.00016602,2]
[366307735,1750180268191,-9007.48,0.00016602,2]
[366307736,1750180268201,-974.97,0.00016602,2]
[366307737,1750180268210,-2137.99,0.00016602,2]
[366307738,1750180268220,-490.0,0.00016602,2]
[366307739,1750180268230,-1051.21,0.00016602,2]
[366307740,1750180268239,-641.41,0.00016602,2]
[366307741,1750180268249,-490.0,0.00016602,2]
[366307742,1750180268259,-490.0,0.00016602,2]
[366307743,1750180268269,-490.0,0.00016602,2]
[366307744,1750180268281,-490.0,0.00016602,2]
[366307745,1750180268291,-1054.01,0.00016602,2]
[366307746,1750180268301,-490.0,0.00016602,2]
[366307747,1750180268312,-884.12,0.00016602,2]
[366307748,1750180268322,-1609.4,0.00016602,2]
[366307749,1750180268331,-490.0,0.00016602,2]
[366307750,1750180268341,-1224.77,0.00016602,2]
[366307751,1750180268351,-997.82,0.00016602,2]
[366307752,1750180268361,-3363.57,0.00016602,2]
[366307753,1750180268371,-1744.21,0.00016602,2]
[366307754,1750180268381,-490.0,0.00016602,2]
[366307755,1750180268392,-490.0,0.00016602,2]
[366307756,1750180268402,-490.0,0.00016602,2]
[366307757,1750180268412,-490.0,0.00016602,2]
[366307758,1750180268421,-2438.74,0.00016602,2]
[366307759,1750180268431,-9864.46,0.00016602,2]
[366307760,1750180268441,-490.0,0.00016602,2]
[366307761,1750180268452,-1532.83,0.00016602,2]
[366307762,1750180268461,-490.0,0.00016602,2]
[366307763,1750180268472,-5608.25,0.00016602,2]
[366307764,1750180268482,-1225.97,0.00016602,2]
[366307765,1750180268491,-490.0,0.00016602,2]
[366307766,1750180268501,-1567.63,0.00016602,2]
[366307767,1750180268511,-490.0,0.00016602,2]
[366307768,1750180268521,-743.08,0.00016602,2]
[366307769,1750180268530,-490.0,0.00016602,2]
[366307770,1750180268540,-490.0,0.00016602,2]
[366307771,1750180268550,-6941.9,0.00016602,2]
[366307772,1750180268559,-3856.46,0.00016602,2]
[366307773,1750180268569,-490.0,0.00016602,2]
[366307774,1750180268578,-4910.83,0.00016602,2]
[366307775,1750180268588,-490.0,0.00016602,2]
[366307776,1750180268597,-490.0,0.00016602,2]
[366307777,1750180268607,-490.0,0.00016602,2]
[366307778,1750180268617,-490.0,0.00016602,2]
[366307779,1750180268627,-1461.76,0.00016602,2]
[366307780,1750180268639,-490.0,0.00016602,2]
[366307781,1750180268649,-1796.71,0.00016602,2]
[366307782,1750180268659,-490.0,0.00016602,2]
[366307783,1750180268669,-744.4,0.00016602,2]
[366307784,1750180268678,-490.0,0.00016602,2]
[366307785,1750180268688,-5858.85,0.00016602,2]
[366307786,1750180268698,-490.0,0.00016602,2]
[366307787,1750180268708,-930.86431217,0.00016602,2]
[366307788,1750180270334,-699.60633715,0.00016438,2]
[366307789,1750180270346,-493.493,0.00016438,2]
[366307790,1750180270410,-380.45066285,0.00016438,2]
[366307791,1750180270420,-210.49959118,0.00016438,2]
[366307792,1750180300183,402.5610723,0.0002465,120]
[366307793,1750180517283,19510.89638326,0.00024,120]
[366307794,1750180525642,2237.06362552,0.00024,120]
[366307796,1750180874018,500.0,0.00024658,120]
[366307797,1750180887354,500.0,0.00024658,120]
[366307798,1750180904327,650.0,0.00024658,120]
[366307823,1750181432159,-241.81,0.00013699,2]
[366307824,1750181432169,-1092.23379675,0.00013999,5]
[366307825,1750181432180,-3869.34220325,0.00014,2]
[366307826,1750181432191,-861.13601934,0.00014,2]
[366307827,1750181432268,-40262.25728461,0.00014,2]
[366307828,1750181432394,-115569.81327778,0.00014,2]
[366307829,1750181432404,-250.0,0.00015,2]
[366307830,1750181432414,-300.0,0.00015068,2]
[366307831,1750181432423,-250.0,0.00015068,2]
[366307832,1750181432434,-1000.0,0.00015474,2]
[366307834,1750181432443,-666.0,0.0001557,2]
[366307835,1750181432452,-300.0,0.00015632,2]
[366307836,1750181432462,-150.91,0.00015669,2]
[366307837,1750181432472,-200.0,0.00015694,7]
[366307838,1750181432482,-275.0,0.00015797,2]
[366307839,1750181432491,-300.0,0.00015864,2]
[366307840,1750181432501,-150.90057207,0.000159,2]
[366307841,1750181432512,-275.0,0.0001592,2]
[366307842,1750181432522,-682.21978519,0.00016,2]
[366307843,1750181432532,-207.4,0.00016328,2]
[366307844,1750181432542,-300.0,0.00016336,2]
[366307845,1750181432551,-219.8339802,0.00016338,2]
[366307846,1750181432561,-555.05712795,0.00016338,2]
[366307847,1750181432571,-211.20084237,0.00016338,2]
[366307848,1750181432580,-228.60915878,0.00016338,2]
[366307849,1750181432590,-609.2287,0.00016338,2]
[366307850,1750181432600,-284.7662,0.00016338,2]
[366307852,1750181432609,-4540.4901,0.00016338,2]
[366307854,1750181432619,-10200.97075097,0.000164,2]
[366307856,1750181432630,-1883.34165216,0.00016405,2]
[366307858,1750181432639,-167.74196409,0.00016428,2]
[366307861,1750181432649,-151.0,0.00016428,2]
[366307864,1750181432658,-151.0,0.00016428,2]
[366307868,1750181432668,-1092.23379675,0.00016434,5]
[366307871,1750181432678,-8771.59150145,0.00016435,2]
[366307873,1750181432688,-57477.57469989,0.00016435,2]
[366307940,1750181433318,-288.86398066,0.00016435,2]
[366308061,1750181438153,-586.24167236,0.00015999,2]
[366308062,1750181438162,-500.0,0.00015999,2]
[366308063,1750181438172,-638.23071639,0.00015999,2]
[366308064,1750181438181,-452.30034596,0.00015999,2]
[366308065,1750181438190,-499.05705222,0.00015999,2]
[366308066,1750181438200,-500.0,0.00015999,2]
[366308067,1750181438209,-500.0,0.00015999,2]
[366308068,1750181438221,-500.0,0.00015999,2]
[366308069,1750181438230,-178.4534598,0.00016425,2]
[366308070,1750181438426,-279.5465402,0.00016425,2]
[366308071,1750181438437,-458.0,0.00016428,2]
[366308072,1750181438446,-2293.61240799,0.00016435,2]
[366308073,1750181438485,-1039.4,0.00016435,2]
[366308074,1750181438497,-3617.26651506,0.00016435,2]
[366308075,1750181438544,-8984.23791103,0.00016435,2]
[366308247,1750181440271,-76779.51127062,0.00016435,2]
[366308260,1750181440383,-1081.09963062,0.00016435,2]
[366308262,1750181440393,-500.0,0.00016437,2]
[366308264,1750181440403,-459.74035753,0.00016437,2]
[366308266,1750181440414,-40.25964247,0.00016437,2]
[366308268,1750181440424,-219.09553477,0.00016437,2]
[366308270,1750181440433,-500.0,0.00016437,2]
[366308272,1750181440443,-477.19482276,0.00016437,2]
[366308274,1750181440454,-90.00377828,0.00016437,2]
[366308276,1750181440464,-221.56669712,0.00016437,2]
[366308278,1750181440475,-278.43330288,0.00016437,2]
[366308280,1750181440485,-255.39174321,0.00016437,2]
[366308282,1750181440496,-1019.81832,0.00016437,2]
[366308286,1750181440517,-683.61509811,0.00016437,2]
[366308288,1750181440526,-1120.411,0.00016437,2]
[366308290,1750181440535,-454.99653912,0.00016437,2]
[366308292,1750181440545,-1092.23379674,0.00016437,5]
[366308293,1750181440554,-450.0,0.00016437,2]
[366308295,1750181440564,-178.9278325,0.00016437,2]
[366308298,1750181440573,-1092.23379675,0.00016437,5]
[366308299,1750181440583,-165.38193678,0.00016437,5]
[366308302,1750181440598,-356.73918843,0.00016437,5]
[366308304,1750181440610,-459.87518231,0.00016437,5]
[366308307,1750181440622,-110.23748923,0.00016437,5]
[366308309,1750181440632,-1092.23379675,0.00016437,5]
[366308310,1750181440642,-1092.23379675,0.00016437,5]
[366308313,1750181440652,-1092.23379672,0.00016437,5]
[366308315,1750181440662,-161.95542812,0.00016438,2]
[366308317,1750181440671,-490.0,0.00016438,2]
[366308318,1750181440681,-490.0,0.00016438,2]
[366308320,1750181440691,-490.0,0.00016438,2]
[366308322,1750181440701,-490.0,0.00016438,2]
[366308325,1750181440712,-490.0,0.00016438,2]
[366308327,1750181440722,-490.0,0.00016438,2]
[366308329,1750181440731,-490.0,0.00016438,2]
[366308331,1750181440741,-490.0,0.00016438,2]
[366308333,1750181440751,-490.0,0.00016438,2]
[366308335,1750181440761,-490.0,0.00016438,2]
[366308337,1750181440770,-490.0,0.00016438,2]
[366308340,1750181440784,-490.0,0.00016438,2]
[366308342,1750181440794,-322.32037754,0.00016438,2]
[366308344,1750181440804,-490.0,0.00016438,2]
[366308346,1750181440814,-490.0,0.00016438,2]
[366308348,1750181440824,-490.0,0.00016438,2]
[366308350,1750181440834,-490.0,0.00016438,2]
[366308353,1750181440845,-493.01129347,0.00016438,2]
[366308355,1750181440855,-490.0,0.00016438,2]
[366308357,1750181440866,-490.0,0.00016438,2]
[366308359,1750181440877,-490.0,0.00016438,2]
[366308361,1750181440887,-490.0,0.00016438,2]
[366308363,1750181440897,-490.0,0.00016438,2]
[366308365,1750181440907,-490.0,0.00016438,2]
[366308367,1750181440916,-490.0,0.00016438,2]
[366308368,1750181440926,-465.95240049,0.00016438,2]
[366308369,1750181440935,-490.0,0.00016438,2]
[366308370,1750181440944,-696.37,0.00016438,2]
[366308371,1750181440954,-490.0,0.00016438,2]
[366308372,1750181440963,-577.1,0.00016438,2]
[366308373,1750181440972,-490.0,0.00016438,2]
[366308374,1750181440981,-490.0,0.00016438,2]
[366308375,1750181440991,-490.0,0.00016438,2]
[366308376,1750181441000,-490.0,0.00016438,2]
[366308377,1750181441009,-861.77,0.00016438,2]
[366308378,1750181441019,-490.0,0.00016438,2]
[366308379,1750181441028,-653.18,0.00016438,2]
[366308380,1750181441037,-490.0,0.00016438,2]
[366308381,1750181441046,-490.0,0.00016438,2]
[366308382,1750181441055,-490.0,0.00016438,2]
[366308384,1750181441065,-490.0,0.00016438,2]
[366308386,1750181441074,-490.0,0.00016438,2]
[366308388,1750181441084,-490.0,0.00016438,2]
[366308390,1750181441093,-490.0,0.00016438,2]
[366308392,1750181441102,-490.0,0.00016438,2]
[366308394,1750181441112,-490.0,0.00016438,2]
[366308396,1750181441122,-491.67,0.00016438,2]
[366308398,1750181441133,-490.0,0.00016438,2]
[366308400,1750181441143,-490.0,0.00016438,2]
[366308402,1750181441152,-490.0,0.00016438,2]
[366308405,1750181441163,-490.0,0.00016438,2]
[366308407,1750181441173,-490.0,0.00016438,2]
[366308409,1750181441182,-515.74,0.00016438,2]
[366308411,1750181441192,-490.0,0.00016438,2]
[366308413,1750181441201,-490.0,0.00016438,2]
[366308415,1750181441212,-490.0,0.00016438,2]
[366308417,1750181441224,-490.0,0.00016438,2]
[366308419,1750181441234,-490.0,0.00016438,2]
[366308421,1750181441244,-584.1,0.00016438,2]
[366308423,1750181441255,-490.0,0.00016438,2]
[366308425,1750181441264,-490.0,0.00016438,2]
[366308427,1750181441274,-763.57,0.00016438,2]
[366308429,1750181441284,-490.0,0.00016438,2]
[366308431,1750181441296,-490.0,0.00016438,2]
[366308433,1750181441306,-307.1,0.00016438,2]
[366308435,1750181441316,-490.0,0.00016438,2]
[366308437,1750181441326,-490.0,0.00016438,2]
[366308439,1750181441335,-490.0,0.00016438,2]
[366308441,1750181441345,-490.0,0.00016438,2]
[366308443,1750181441355,-490.0,0.00016438,2]
[366308445,1750181441365,-490.0,0.00016438,2]
[366308447,1750181441375,-490.0,0.00016438,2]
[366308449,1750181441387,-490.0,0.00016438,2]
[366308451,1750181441396,-490.0,0.00016438,2]
[366308453,1750181441406,-490.0,0.00016438,2]
[366308455,1750181441416,-490.0,0.00016438,2]
[366308458,1750181441426,-490.0,0.00016438,2]
[366308460,1750181441436,-490.0,0.00016438,2]
[366308462,1750181441446,-490.0,0.00016438,2]
[366308464,1750181441456,-490.0,0.00016438,2]
[366308466,1750181441467,-638.32,0.00016438,2]
[366308468,1750181441477,-492.29,0.00016438,2]
[366308470,1750181441487,-490.0,0.00016438,2]
[366308472,1750181441497,-490.0,0.00016438,2]
[366308474,1750181441507,-490.0,0.00016438,2]
[366308476,1750181441519,-490.0,0.00016438,2]
[366308478,1750181441529,-490.0,0.00016438,2]
[366308480,1750181441539,-490.0,0.00016438,2]
[366308482,1750181441549,-490.0,0.00016438,2]
[366308484,1750181441560,-490.0,0.00016438,2]
[366308486,1750181441570,-490.0,0.00016438,2]
[366308488,1750181441580,-540.13,0.00016438,2]
[366308490,1750181441590,-490.0,0.00016438,2]
[366308492,1750181441601,-490.0,0.00016438,2]
[366308494,1750181441611,-693.28,0.00016438,2]
[366308496,1750181441621,-490.0,0.00016438,2]
[366308498,1750181441632,-638.50177886,0.00016438,2]
[366308500,1750181441642,-490.0,0.00016438,2]
[366308502,1750181441651,-490.0,0.00016438,2]
[366308504,1750181441661,-490.0,0.00016438,2]
[366308506,1750181441671,-490.0,0.00016438,2]
[366308508,1750181441680,-490.0,0.00016438,2]
[366308510,1750181441691,-490.0,0.00016438,2]
[366308512,1750181441701,-480.0,0.00016438,2]
[366308514,1750181441711,-763.16,0.00016438,2]
[366308517,1750181441725,-490.0,0.00016438,2]
[366308519,1750181441735,-503.91427041,0.00016438,2]
[366308521,1750181441745,-490.0,0.00016438,2]
[366308523,1750181441754,-500.0,0.00016438,2]
[366308525,1750181441764,-583.65,0.00016438,2]
[366308527,1750181441775,-490.0,0.00016438,2]
[366308529,1750181441784,-490.0,0.00016438,2]
[366308531,1750181441794,-490.0,0.00016438,2]
[366308533,1750181441804,-490.0,0.00016438,2]
[366308535,1750181441813,-490.0,0.00016438,2]
[366308537,1750181441823,-490.0,0.00016438,2]
[366308568,1750181442115,-490.0,0.00016438,2]
[366308570,1750181442126,-627.15237812,0.00016438,2]
[366308572,1750181442137,-639.91,0.00016438,2]
[366308574,1750181442147,-490.0,0.00016438,2]
[366308576,1750181442157,-490.0,0.00016438,2]
[366308578,1750181442166,-490.0,0.00016438,2]
[366308580,1750181442176,-490.0,0.00016438,2]
[366308582,1750181442185,-490.0,0.00016438,2]
[366308584,1750181442194,-310.41135014,0.00016438,2]
[366308586,1750181442204,-490.0,0.00016438,2]
[366308588,1750181442216,-490.0,0.00016438,2]
[366308591,1750181442227,-490.0,0.00016438,2]
[366308593,1750181442237,-490.0,0.00016438,2]
[366308595,1750181442246,-490.0,0.00016438,2]
[366308597,1750181442255,-490.0,0.00016438,2]
[366308599,1750181442266,-490.0,0.00016438,2]
[366308601,1750181442278,-490.0,0.00016438,2]
[366308603,1750181442287,-490.0,0.00016438,2]
[366308605,1750181442297,-490.0,0.00016438,2]
[366308607,1750181442307,-490.0,0.00016438,2]
[366308609,1750181442317,-490.0,0.00016438,2]
[366308611,1750181442327,-490.0,0.00016438,2]
[366308613,1750181442336,-679.46,0.00016438,2]
[366308615,1750181442346,-490.0,0.00016438,2]
[366308617,1750181442355,-490.0,0.00016438,2]
[366308619,1750181442365,-490.0,0.00016438,2]
[366308621,1750181442375,-490.0,0.00016438,2]
[366308623,1750181442386,-490.0,0.00016438,2]
[366308625,1750181442395,-828.99,0.00016438,2]
[366308627,1750181442405,-490.0,0.00016438,2]
[366308629,1750181442415,-490.0,0.00016438,2]
[366308631,1750181442425,-490.0,0.00016438,2]
[366308633,1750181442434,-490.0,0.00016438,2]
[366308635,1750181442443,-718.98,0.00016438,2]
[366308637,1750181442453,-490.0,0.00016438,2]
[366308639,1750181442463,-490.0,0.00016438,2]
[366308641,1750181442473,-490.0,0.00016438,2]
[366308643,1750181442483,-490.0,0.00016438,2]
[366308645,1750181442493,-490.0,0.00016438,2]
[366308647,1750181442502,-490.0,0.00016438,2]
[366308649,1750181442511,-490.0,0.00016438,2]
[366308651,1750181442521,-490.0,0.00016438,2]
[366308653,1750181442530,-300.0,0.00016438,2]
[366308655,1750181442540,-490.0,0.00016438,2]
[366308657,1750181442549,-490.0,0.00016438,2]
[366308659,1750181442559,-490.0,0.00016438,2]
[366308661,1750181442568,-490.0,0.00016438,2]
[366308663,1750181442578,-490.0,0.00016438,2]
[366308665,1750181442588,-712.68,0.00016438,2]
[366308667,1750181442597,-490.0,0.00016438,2]
[366308669,1750181442606,-490.0,0.00016438,2]
[366308671,1750181442616,-490.0,0.00016438,2]
[366308674,1750181442625,-490.0,0.00016438,2]
[366308676,1750181442635,-490.0,0.00016438,2]
[366308678,1750181442645,-490.0,0.00016438,2]
[366308680,1750181442655,-490.0,0.00016438,2]
[366308682,1750181442664,-490.0,0.00016438,2]
[366308684,1750181442674,-490.0,0.00016438,2]
[366308686,1750181442685,-490.0,0.00016438,2]
[366308688,1750181442695,-490.0,0.00016438,2]
[366308690,1750181442704,-624.65,0.00016438,2]
[366308692,1750181442714,-490.0,0.00016438,2]
[366308694,1750181442723,-490.0,0.00016438,2]
[366308696,1750181442732,-490.0,0.00016438,2]
[366308698,1750181442741,-490.0,0.00016438,2]
[366308700,1750181442750,-490.0,0.00016438,2]
[366308702,1750181442760,-748.29,0.00016438,2]
[366308704,1750181442769,-490.0,0.00016438,2]
[366308706,1750181442779,-490.0,0.00016438,2]
[366308708,1750181442788,-494.27317248,0.00016438,2]
[366308710,1750181442797,-490.0,0.00016438,2]
[366308712,1750181442807,-490.0,0.00016438,2]
[366308714,1750181442816,-490.0,0.00016438,2]
[366308716,1750181442826,-490.0,0.00016438,2]
[366308718,1750181442835,-490.0,0.00016438,2]
[366308720,1750181442844,-490.0,0.00016438,2]
[366308722,1750181442853,-490.0,0.00016438,2]
[366308724,1750181442864,-440.76664764,0.00016438,2]
[366308726,1750181442873,-490.0,0.00016438,2]
[366308728,1750181442883,-490.0,0.00016438,2]
[366308730,1750181442893,-490.0,0.00016438,2]
[366308732,1750181442903,-559.9,0.00016438,2]
[366308734,1750181442912,-490.0,0.00016438,2]
[366308736,1750181442921,-490.0,0.00016438,2]
[366308738,1750181442931,-490.0,0.00016438,2]
[366308740,1750181442940,-490.0,0.00016438,2]
[366308742,1750181442950,-490.0,0.00016438,2]
[366308744,1750181442959,-490.0,0.00016438,2]
[366308746,1750181442969,-505.61,0.00016438,2]
[366308748,1750181442978,-490.0,0.00016438,2]
[366308750,1750181442988,-2449.94846,0.00016438,2]
[366308752,1750181442998,-490.0,0.00016438,2]
[366308754,1750181443007,-503.74932388,0.00016438,2]
[366308756,1750181443017,-490.0,0.00016438,2]
[366308758,1750181443027,-490.0,0.00016438,2]
[366308760,1750181443036,-678.15,0.00016438,2]
[366308762,1750181443046,-490.0,0.00016438,2]
[366308764,1750181443055,-490.0,0.00016438,2]
[366308767,1750181443064,-490.0,0.00016438,2]
[366308769,1750181443074,-490.0,0.00016438,2]
[366308772,1750181443083,-490.0,0.00016438,2]
[366308774,1750181443093,-490.0,0.00016438,2]
[366308776,1750181443102,-490.0,0.00016438,2]
[366308778,1750181443112,-490.0,0.00016438,2]
[366308781,1750181443122,-490.0,0.00016438,2]
[366308785,1750181443132,-490.0,0.00016438,2]
[366308788,1750181443141,-490.0,0.00016438,2]
[366308791,1750181443151,-490.0,0.00016438,2]
[366308793,1750181443161,-490.0,0.00016438,2]
[366308795,1750181443170,-490.0,0.00016438,2]
[366308797,1750181443180,-490.0,0.00016438,2]
[366308799,1750181443190,-490.0,0.00016438,2]
[366308801,1750181443199,-490.0,0.00016438,2]
[366308803,1750181443209,-490.0,0.00016438,2]
[366308805,1750181443221,-490.0,0.00016438,2]
[366308807,1750181443230,-490.0,0.00016438,2]
[366308809,1750181443239,-490.0,0.00016438,2]
[366308811,1750181443249,-434.37874147,0.00016438,2]
[366308813,1750181443260,-490.0,0.00016438,2]
[366308815,1750181443270,-490.0,0.00016438,2]
[366308817,1750181443279,-493.76,0.00016438,2]
[366308819,1750181443288,-490.0,0.00016438,2]
[366308821,1750181443298,-490.0,0.00016438,2]
[366308823,1750181443308,-490.0,0.00016438,2]
[366308825,1750181443317,-2234.198563,0.00016438,2]
[366308827,1750181443327,-490.0,0.00016438,2]
[366308829,1750181443336,-490.0,0.00016438,2]
[366308831,1750181443347,-158.765337,0.00016438,2]
[366308833,1750181443356,-490.0,0.00016438,2]
[366308835,1750181443366,-490.0,0.00016438,2]
[366308837,1750181443375,-490.0,0.00016438,2]